Workbook

Sheet 13022023
A1: Школа | B1: - | E1: Отд./корп | I1: День
A3: Прием пищи | B3: Раздел | C3: № рец. | D3: Блюдо | E3: Выход, г | F3: Цена | G3: Калорийность | H3: Белки | I3: Жиры | J3: Углеводы
A4: Завтрак | B4: гор.блюдо | C4: ТТК 2020 г | D4: Тефтели из говядины в соусе томатном | E4: 110 | G4: 117.00 | H4: 5.50 | I4: 6.83 | J4: 8.46
B5: гор блюдо | C5: №302/2015 г | D5: Каша гречневая рассыпчатая | E5: 150 | G5: 242.00 | H5: 6.62 | I5: 5.39 | J5: 41.87
B6: гор.напиток | C6: №348/2015 | D6: Компот из свежих плодов (яблоки) | E6: 200 | G6: 49.00 | H6: 0.08 | I6: 0.08 | J6: 11.94
A7: понедельник | B7: хлеб | D7: Хлеб ржано-пшеничный | E7: 15 | G7: 33.00 | H7: 0.75 | I7: 0.15 | J7: 6.75
B8: хлеб | D8: Хлеб пшеничный | E8: 15 | G8: 35.00 | H8: 1.14 | I8: 0.12 | J8: 7.38
C9: № 15/2015 г | D9: Сыр порциями | E9: 15 | G9: 53.00 | H9: 3.94 | I9: 3.99 | J9: 0.00
B10: печенье | D10: Печенье | E10: 30 | G10: 48.00 | H10: 1.07 | I10: 1.14 | J10: 8.23
A11: ИТОГО | E11: =E4+E5+E6+E7+E8+E9+E10 -> 535 | F11: 62.10 | G11: =G4+G5+G6+G7+G9+G10+G8 -> 577.00 | H11: =H4+H5+H6+H7+H9+H10+H8 -> 19.10 | I11: =I4+I5+I6+I7+I9+I10+I8 -> 17.70 | J11: =J4+J5+J6+J7+J9+J10+J8 -> 84.63
A12: Завтрак | B12: гор.блюдо | C12: ТТК 2021 | D12: Рагу из птицы | E12: 200 | G12: 278.00 | H12: 12.04 | I12: 15.22 | J12: 23.20
B13: гор.напиток | C13: ТТК 2021г | D13: Компот из замороженной компотной смеси | E13: 200 | G13: 46 | H13: 0.13 | I13: 0.02 | J13: 11.15
B14: хлеб | D14: Хлеб ржано-пшеничный | E14: 15 | G14: 33.00 | H14: 0.75 | I14: 0.15 | J14: 6.75
A15: вторник | B15: хлеб | D15: Хлеб пшеничный | E15: 15 | G15: 35.00 | H15: 1.14 | I15: 0.12 | J15: 7.38
B16: закуска | C16: № 45/2015 г | D16: Салат из белокачанной капусты | E16: 60 | G16: 54.00 | H16: 0.93 | I16: 3.05 | J16: 5.64
B17: фрукт | C17: № 338/2015г | D17: Плоды свежие (яблоки) | E17: 100 | G17: 47.00 | H17: 0.40 | I17: 0.40 | J17: 9.80
A19: ИТОГО | E19: =E12+E13+E14+E15+E16+E17 -> 590 | F19: 62.10 | G19: =G12+G13+G14+G15+G16+G17 -> 493.00 | H19: =H12+H13+H14+H15+H16+H17 -> 15.39 | I19: =I12+I13+I14+I15+I16+I17 -> 18.96 | J19: =J12+J13+J14+J15+J16+J17 -> 63.92
A20: Завтрак | B20: гор.блюдо | C20: ТТК 2021 г | D20: Котлеты "Школьные" | E20: 90 | G20: 113 | H20: 11.00 | I20: 6.09 | J20: 3.60
B21: гор.блюдо | C21: № 304/2015 г | D21: Рис отварной с маслом сливочным | E21: 155 | G21: 257 | H21: 3.87 | I21: 9.05 | J21: 40.05
B22: гор.напиток | C22: № 699/2004 | D22: Компот из замороженной вишни | E22: 200 | G22: 48.00 | H22: 0.12 | I22: 0.03 | J22: 11.57
A23: среда | B23: хлеб | D23: Хлеб ржано-пшеничный | E23: 20 | G23: 44.00 | H23: 1.00 | I23: 0.20 | J23: 9.00
B24: хлеб | D24: Хлеб пшеничный | E24: 15 | G24: 35.00 | H24: 1.14 | I24: 0.12 | J24: 7.38
B25: закуска | C25: №52/2015 г | D25: Свекла отварная (долькам) с маслом | E25: 60 | G25: 56 | H25: 0.85 | I25: 3.65 | J25: 5.02
A27: ИТОГО | E27: =E20+E21+E22+E23+E24+E25 -> 540 | F27: 62.10 | G27: =G20+G21+G22+G23+G24+G25 -> 553.00 | H27: =H20+H21+H22+H23+H24+H25 -> 17.98 | I27: =I20+I21+I22+I23+I24+I25 -> 19.14 | J27: =J20+J21+J22+J23+J24+J25 -> 76.62
A28: Завтрак | B28: гор.блюдо | C28: ТТК 2022 г | D28: Чикен | E28: 90 | G28: 110.00 | H28: 11.10 | I28: 8.20 | J28: 12.09
B29: гор.блюдо | C29: № 202/2015 г | D29: Макаронные изделия отварные | E29: 150 | G29: 180.00 | H29: 5.60 | I29: 5.06 | J29: 35.91
B30: гор.напиток | C30: №699/2004 | D30: Напиток лимонный | E30: 200 | G30: 51.00 | H30: 0.14 | I30: 0.01 | J30: 9.43
B31: хлеб | D31: Хлеб ржано-пшеничный | E31: 15 | G31: 33.00 | H31: 0.75 | I31: 0.15 | J31: 6.75
B32: хлеб | D32: Хлеб пшеничный | E32: 15 | G32: 35.00 | H32: 1.14 | I32: 0.12 | J32: 7.38
A33: четверг | B33: закуска | C33: ТТК | D33: Салат из моркови | E33: 60 | G33: 80.00 | H33: 0.63 | I33: 2.04 | J33: 2.34
B34: фрукт | C34: № 338/2015г | D34: Плоды свежие (яблоки) | E34: 100 | G34: 47.00 | H34: 0.40 | I34: 0.40 | J34: 9.80
B35: печенье | D35: Печенье | E35: 15 | G35: 80.00 | H35: 0.36 | I35: 4.16 | J35: 4.16
A36: ИТОГО | E36: =E28+E29+E30+E31+E32+E33+E34+E35 -> 645 | F36: 62.10 | G36: =G28+G29+G30+G31+G32+G33+G34+G35 -> 616.00 | H36: =H28+H29+H30+H31+H32+H33+H34+H35 -> 20.12 | I36: 20.14 | J36: 87.86
A37: Завтрак | B37: гор.блюдо | C37: ТТК 2022 г | D37: Картофель тушеный с фаршем | E37: 180 | G37: 290 | H37: 13.38 | I37: 15.24 | J37: 24.71
B38: гор.напиток | C38: ТТК 2021г | D38: Чай с сахаром, лимолном | E38: 213 | G38: 34 | H38: 0.06 | I38: 0.01 | J38: 8.13
A39: пятница | B39: хлеб | D39: Хлеб ржано-пшеничный | E39: 20 | G39: 44.00 | H39: 1.00 | I39: 0.20 | J39: 9.00
B40: хлеб | D40: Хлеб пшеничный | E40: 15 | G40: 35.00 | H40: 1.14 | I40: 0.12 | J40: 7.38
B41: закуска | C41: ТТК | D41: Салат из квашенной капусты (без лука) | E41: 60 | G41: 51.00 | H41: 0.98 | I41: 3.05 | J41: 4.63
B42: печенье | D42: Печенье | E42: 15 | G42: 67.00 | H42: 1.03 | I42: 2.07 | J42: 11.11
A43: ИТОГО | E43: =E37+E38+E39+E40+E41+E42 -> 503 | F43: 62.10 | G43: =G37+G38+G39+G40+G41+G42 -> 521 | H43: =H37+H38+H39+H40+H41+H42 -> 17.59 | I43: 20.69 | J43: 64.96
A44: Завтрак | B44: гор.блюдо | C44: № 243/2015 г | D44: Сосиски отварные | E44: 100 | G44: 144 | H44: 9.40 | I44: 11.00 | J44: 1.80
B45: гор.блюдо | C45: № 202/2015 г | D45: Макаронные изделия отварные | E45: 150 | G45: 180.00 | H45: 5.60 | I45: 5.06 | J45: 35.91
B46: гор.напиток | C46: 348/2018 | D46: Компот из плодов сушеных (урюк) | E46: 200 | G46: 47.00 | H46: 1.00 | I46: 0.08 | J46: 10.56
B47: хлеб | D47: Хлеб ржано-пшеничный | E47: 15 | G47: 33 | H47: 0.75 | I47: 0.15 | J47: 6.75
A48: Суббота | B48: хлеб | D48: Хлеб пшеничный | E48: 15 | G48: 35.00 | H48: 1.14 | I48: 0.12 | J48: 7.38
B49: фрукты | C49: № 338/2015 г | D49: Плоды свежие (яблоки) | E49: 100 | G49: 47.00 | H49: 0.40 | I49: 0.40 | J49: 9.80
A50: ИТОГО | E50: =E44+E45+E46+E47+E48+E49 -> 580 | F50: 62.10 | G50: =G44+G45+G46+G47+G48+G49 -> 486 | H50: =H44+H45+H46+H47+H48+H49 -> 18.29 | I50: =I44+I45+I46+I47+I48+I49 -> 16.81 | J50: 72.20
